FIN.Transaction Date,MCH.Merchant Name,FIN.Accounting Code 01 Description,FIN.Accounting Code 03 Description,FIN.Net Transaction Amount,FIN.Transaction Amount,FIN.Tax Amount,FIN.TAX.Tax Rate,FIN.Tax Rate(%)
21/01/2021,THE BRIDGE GROCERY,Housing Options,Miscellaneous Expenses,50,50,0,0,0
28/01/2021,HOMEBASE LTD,Private Sector Speech Call,Miscellaneous Expenses,3.33,4,0.67,0,20
28/01/2021,HOME BARGAINS NEWARK,Housing Options,Miscellaneous Expenses,17.63,21.15,3.52,0,20
01/02/2021,CURRYS ONLINE,Housing Options,Miscellaneous Expenses,108.32,129.99,21.67,0,20
01/02/2021,WWW.NEWARK-SHERWOODDC.,Housing Options,Miscellaneous Expenses,332.28,332.28,0,0,0
01/02/2021,POUNDSTRETCHER 569,Housing Options,Miscellaneous Expenses,15.77,18.92,3.15,0,20
01/02/2021,WWW.NEWARK-SHERWOODDC.,Housing Options,Miscellaneous Expenses,332.28,332.28,0,0,0
05/02/2021,CURRYS ONLINE,Housing Options,Miscellaneous Expenses,129.99,129.99,0,0,0
01/02/2021,CURRYS ONLINE,Housing Options,Miscellaneous Expenses,-108.32,-129.99,-21.67,0,20
08/02/2021,SEVERN TRENT WATER,Housing Options,Miscellaneous Expenses,52.43,52.43,0,0,0
08/02/2021,SEVERN TRENT WATER,Housing Options,Miscellaneous Expenses,102.34,102.34,0,0,0
08/02/2021,WWW.SSE.CO.UK,Housing Options,Miscellaneous Expenses,142.54,142.54,0,0,0
08/02/2021,WWW.SSE.CO.UK,Housing Options,Miscellaneous Expenses,50.04,50.04,0,0,0
09/02/2021,THE BRIDGE GROCERY,Housing Options,Miscellaneous Expenses,50,50,0,0,0
10/02/2021,ONE STOP 3018,Housing Options,Hostel Management,40,40,0,0,0
05/03/2021,E.ON ENERGY SOLUTIONS,Housing Options,Hostel Management,10.14,10.14,0,0,0
18/03/2021,EDF ENERGY-ECOM,Housing Options,Miscellaneous Expenses,59.13,59.13,0,0,0
18/03/2021,BRITISH GAS OTP,Housing Options,Miscellaneous Expenses,248.33,248.33,0,0,0
05/01/2021,CHARTERED INSTITUTE OF,Legal Section,Subscriptions,204,204,0,0,0
07/01/2021,CHARTERED INSTITUTE OF,Legal Section,Subscriptions,364,364,0,0,0
23/02/2021,WWW.SHAWS.CO.UK,Legal Section,Stationery,33.3,33.3,0,0,0
20/01/2021,ARGOS LTD,Heritage Culture and Visitors,Other Equipment And Tools,259.98,259.98,0,0,0
17/02/2021,AMZNMktplace,Heritage Culture and Visitors,Clothing And Uniforms,19.12,22.94,3.82,0,20
12/03/2021,GROUP FOR ED IN MUSEUM,Central Personnel Expenses,Internal Training,250,250,0,0,0
15/03/2021,WORKPLACE PRODUCTS,Heritage Culture and Visitors,Cleaning Materials,128.38,154.06,25.68,0,20
02/02/2021,BOOKER LIMITED GRANTHA,Newark Business Innovation Cen,Repairs And Maintenance,47.85,57.42,9.57,0,20
10/02/2021,Amazon.co.uk MF1226PK4,Newark Business Innovation Cen,Repairs And Maintenance,10.83,13,2.17,20,20
10/02/2021,AMZN Mktp UK MF8K17PM4,Newark Business Innovation Cen,Repairs And Maintenance,15.62,18.75,3.13,20,20
10/02/2021,AMZNMKTPLACE AMAZON.CO,Newark Business Innovation Cen,Repairs And Maintenance,9.92,11.9,1.98,20,20
16/02/2021,HOMEBASE LTD,Newark Business Innovation Cen,Repairs And Maintenance,12.87,15.45,2.58,0,20
11/03/2021,CO OP GROUP FOOD,Newark Business Innovation Cen,Catering,1.5,1.5,0,0,0
11/03/2021,AMZNMktplace,Newark Business Innovation Cen,Catering,13.28,15.94,2.66,20,20
11/03/2021,AMZNMktplace,Newark Business Innovation Cen,Catering,6.66,7.99,1.33,20,20
12/03/2021,ASDA  STORES 4201,Newark Business Innovation Cen,Catering,18.54,18.54,0,0,0
15/03/2021,CO OP GROUP FOOD,Newark Business Innovation Cen,Catering,3.4,3.4,0,0,0
18/03/2021,200 DEGREES COFFEE ROA,Newark Business Innovation Cen,Catering,102.99,102.99,0,0,0
19/03/2021,CO OP GROUP FOOD,Newark Business Innovation Cen,Catering,18.15,18.15,0,0,0
20/01/2021,DVLA VEHICLE TAX,Vehicle Pool Workshop,Licences & M.O.T.'S,267.5,267.5,0,0,0
20/01/2021,DVLA VEHICLE TAX,Vehicle Pool Workshop,Licences & M.O.T.'S,267.5,267.5,0,0,0
20/01/2021,DVLA VEHICLE TAX,Vehicle Pool Workshop,Licences & M.O.T.'S,267.5,267.5,0,0,0
02/02/2021,ROYAL MAIL CHARGES,Central Postages,Postages,1.5,1.5,0,0,0
02/02/2021,ROYAL MAIL CHARGES,Central Postages,Postages,2,2,0,0,0
04/02/2021,ROYAL MAIL CHARGES,Central Postages,Postages,1.5,1.5,0,0,0
12/01/2021,DEINCOURT HOTEL,Housing Options,Miscellaneous Expenses,4915,5898,983,0,20
09/02/2021,DEINCOURT HOTEL,Housing Options,Miscellaneous Expenses,3500,4200,700,0,20
16/02/2021,DEINCOURT HOTEL,Housing Options,Miscellaneous Expenses,125,150,25,0,20
17/02/2021,DEINCOURT HOTEL,Housing Options,Miscellaneous Expenses,1041.67,1250,208.33,0,20
17/03/2021,DEINCOURT HOTEL,Housing Options,Miscellaneous Expenses,3821.67,4586,764.33,0,20
17/03/2021,WWW.NEWARK-SHERWOODDC.,Housing Options,Miscellaneous Expenses,646.1,775.32,129.22,0,20
08/01/2021,WWW.JCTLTD.CO.UK,HRA - Compliance Services,Appliance Servicing,112.67,135.2,22.53,0,20
19/01/2021,FLICKR.COM,Communications & Cust Services,Corporate Communication,55.88,55.88,0,0.09,0
29/01/2021,GIFTSVOUCHERS.CO.UK,Covid-19 Expenditure only,Emergency Provisions,480,480,0,0,0
04/02/2021,WWW.PROFESSIONALBOOKS.,HRA - Programmed Works,Miscellaneous Expenses,123.38,123.38,0,0,0
18/02/2021,GIFTSVOUCHERS.CO.UK,Covid Winter Grants Scheme,Gov Grant Expenditure,450,450,0,0,0
18/02/2021,GIFTSVOUCHERS.CO.UK,Covid Winter Grants Scheme,Gov Grant Expenditure,450,450,0,0,0
18/02/2021,GIFTSVOUCHERS.CO.UK,Covid Winter Grants Scheme,Gov Grant Expenditure,450,450,0,0,0
09/03/2021,MANOMANO,DCMC Cultural Recovery Grant,Other Equipment And Tools,444.96,444.96,0,0,0
09/03/2021,GIFTSVOUCHERS.CO.UK,Covid Winter Grants Scheme,Gov Grant Expenditure,900,900,0,0,0
11/03/2021,GIFTSVOUCHERS.CO.UK,Covid Winter Grants Scheme,Gov Grant Expenditure,750,750,0,0,0
11/03/2021,GIFTSVOUCHERS.CO.UK,Covid Winter Grants Scheme,Gov Grant Expenditure,750,750,0,0,0
18/03/2021,GIFTSVOUCHERS.CO.UK,Covid Winter Grants Scheme,Gov Grant Expenditure,2250,2250,0,0,0
18/03/2021,GIFTSVOUCHERS.CO.UK,Covid Winter Grants Scheme,Gov Grant Expenditure,2550,2550,0,0,0
19/03/2021,CS  TESCO STORES GC,Covid Winter Grants Scheme,Gov Grant Expenditure,1800,1800,0,0,0
23/03/2021,PAYPAL  CHENGANJINC EB,Housing Options,Miscellaneous Expenses,398.94,398.94,0,0,0
13/01/2021,SCOTTISH LIME CTR TRUS,Central Personnel Expenses,Internal Training,83.33,100,16.67,0,20
26/01/2021,WWW.ARCO.CO.UK,Area Planning,Clothing And Uniforms,143.04,171.65,28.61,0.2,0
02/02/2021,THPE,Covid-19 Expenditure only,Contractual Services,117,140.4,23.4,0,20
09/02/2021,RTPI,Central Personnel Expenses,Internal Training,199,238.8,39.8,0,20
10/02/2021,C20SOCIETY.ORG,Central Personnel Expenses,Internal Training,5,5,0,0,0
10/02/2021,C20SOCIETY.ORG,Central Personnel Expenses,Internal Training,5,5,0,0,0
26/01/2021,WWW.SOLACE.ORG.UK,Corporate Management Team,Course Fees,49,58.8,9.8,0,20
20/01/2021,AMZNMKTPLACE AMAZON.CO,Cctv,Cctv Operation,43.73,52.47,8.74,0,20
15/02/2021,EMPLOYMENT LAW SERVICE,Central Personnel Expenses,Internal Training,208.8,208.8,0,0,0
03/03/2021,NOTTS COUNTY COUNCIL,Central Personnel Expenses,Internal Training,5,5,0,0,0
19/01/2021,AMZNMKTPLACE AMAZON.CO,Heritage Culture and Visitors,Other Equipment And Tools,12.49,14.99,2.5,0,20
21/01/2021,AMZNMktplace,Heritage Culture and Visitors,Other Equipment And Tools,46.63,55.96,9.33,0,20
27/01/2021,POST OFFICE COUNTER,Heritage Culture and Visitors,Other Equipment And Tools,24.48,24.48,0,0,0
11/02/2021,AMZNMktplace,DCMC Cultural Recovery Grant,Other Equipment And Tools,146.63,175.96,29.33,0,20
11/02/2021,AMZNMktplace,DCMC Cultural Recovery Grant,Other Equipment And Tools,39.96,47.95,7.99,0,20
12/02/2021,AMZNMktplace,DCMC Cultural Recovery Grant,Other Equipment And Tools,60.15,72.18,12.03,0,20
17/02/2021,SOLARCENTRE,DCMC Cultural Recovery Grant,Other Equipment And Tools,104.13,124.96,20.83,0,20
17/02/2021,AMZNMKTPLACE AMAZON.CO,DCMC Cultural Recovery Grant,Other Equipment And Tools,113.27,135.92,22.65,0,20
23/02/2021,ZOOM.US 888-799-9666,DCMC Cultural Recovery Grant,Other Equipment And Tools,119.9,119.9,0,0.09,0
25/02/2021,HILLS OF NEWARK LTD,DCMC Cultural Recovery Grant,Other Equipment And Tools,147.49,176.99,29.5,0,20
03/03/2021,AMZNMktplace,DCMC Cultural Recovery Grant,Other Equipment And Tools,106.04,127.25,21.21,0,20
02/03/2021,AMZNMKTPLACE AMAZON.CO,DCMC Cultural Recovery Grant,Other Equipment And Tools,249.98,299.97,49.99,0,20
04/03/2021,SurveyMonkey,DCMC Cultural Recovery Grant,Other Equipment And Tools,320,384,64,0,20
10/03/2021,AMZNMktplace,DCMC Cultural Recovery Grant,Other Equipment And Tools,233.32,279.98,46.66,0,20
10/03/2021,AMZNMKTPLACE AMAZON.CO,DCMC Cultural Recovery Grant,Other Equipment And Tools,91.42,109.7,18.28,0,20
10/03/2021,AMZNMKTPLACE AMAZON.CO,DCMC Cultural Recovery Grant,Other Equipment And Tools,166.65,199.98,33.33,0,20
12/03/2021,AMZNMKTPLACE AMAZON.CO,DCMC Cultural Recovery Grant,Other Equipment And Tools,28.95,34.74,5.79,0,20
15/03/2021,TIMPSON LTD,Promotion Of Tourism,Promotion Of Events,17.5,21,3.5,0,20
29/12/2020,WWW.NEWARK-SHERWOODDC.,Housing Options,Miscellaneous Expenses,221.52,221.52,0,0,0
29/12/2020,WWW.NEWARK-SHERWOODDC.,Housing Options,Miscellaneous Expenses,221.52,221.52,0,0,0
31/12/2020,PASTDUE CREDIT,Housing Options,Hostel Management,77,77,0,0,0
10/02/2021,ONE STOP 3018,Housing Options,Hostel Management,40,40,0,0,0
10/02/2021,ONE STOP 3018,Housing Options,Hostel Management,40,40,0,0,0
10/02/2021,ONE STOP 3018,Housing Options,Hostel Management,20,20,0,0,0
10/02/2021,ONE STOP 3018,Housing Options,Hostel Management,40,40,0,0,0
09/03/2021,PPOINT_ JI NEWS LTD -,Housing Options,Hostel Management,10,10,0,0,0
10/03/2021,POUNDSTRETCHER 569,Housing Options,Hostel Management,22.46,26.95,4.49,0,20
10/03/2021,THE RANGE-NEWARK,Housing Options,Hostel Management,45.78,54.93,9.15,0,20
17/03/2021,WWW.NEWARK-SHERWOODDC.,Housing Options,Miscellaneous Expenses,351.34,351.34,0,0,0
17/03/2021,WWW.NEWARK-SHERWOODDC.,Housing Options,Miscellaneous Expenses,152.25,152.25,0,0,0
31/12/2020,FACEBK  3J68UW6952,Communications & Cust Services,Corporate Communication,25,25,0,0,0
02/01/2021,FACEBK  PG622YJ952,Communications & Cust Services,Corporate Communication,25,25,0,0,0
01/01/2021,MAILCHIMP    MONTHLY,Heritage Culture and Visitors,Advertising,65.18,65.18,0,0.09,0
13/01/2021,ADOBE CREATIVE CLOUD,Heritage Culture and Visitors,Advertising,59,70.8,11.8,0,20
14/01/2021,D.G. PRIVATE HIRE,Covid-19 Expenditure only,Corporate Communication,14.3,14.3,0,0,0
16/01/2021,FACEBK  K5RGUXW852,Covid-19 Expenditure only,Corporate Communication,4.93,4.93,0,0,0
01/02/2021,MAILCHIMP    MONTHLY,Heritage Culture and Visitors,Advertising,73.79,73.79,0,0.09,0
11/02/2021,AMZNMKTPLACE AMAZON.CO,Communications & Cust Services,Corporate Communication,27.02,32.43,5.41,0,20
13/02/2021,ADOBE CREATIVE CLOUD,Heritage Culture and Visitors,Advertising,59,70.8,11.8,0,20
19/02/2021,FACEBK KUE3W2FDQ2,Covid-19 Expenditure only,Corporate Communication,40,40,0,0,0
19/02/2021,FACEBK KUE3W2FDQ2,Heritage Culture and Visitors,Advertising,71.16,71.16,0,0,0
23/02/2021,FACEBK  PZT7RYW852,Covid-19 Expenditure only,Corporate Communication,40,40,0,0,0
26/02/2021,FACEBK 7SHSL2BEQ2,Heritage Culture and Visitors,Professional Services,39.13,39.13,0,0,0
26/02/2021,FACEBK 7SHSL2BEQ2,Heritage Culture and Visitors,Advertising,33.18,33.18,0,0,0
01/03/2021,LINKEDIN IRELAND,Covid-19 Expenditure only,Corporate Communication,15.06,18.07,3.01,0,20
01/03/2021,MAILCHIMP    MONTHLY,Heritage Culture and Visitors,Advertising,72.56,72.56,0,0.09,0
07/03/2021,LINKEDIN IRELAND,Covid-19 Expenditure only,Corporate Communication,63.25,75.9,12.65,0,20
07/03/2021,WAITROSE 227,General ledger recharge,General suspense,18.64,18.64,0,0,0
13/03/2021,LINKEDIN IRELAND,Covid-19 Expenditure only,Corporate Communication,21.69,26.03,4.34,0,20
13/03/2021,ADOBE CREATIVE CLOUD,Heritage Culture and Visitors,Advertising,59,70.8,11.8,0,20
17/03/2021,FACEBK  A4KMMY6952,Covid-19 Expenditure only,Corporate Communication,35,35,0,0,0
26/03/2021,FACEBK FKMJS2TDQ2,HAZ Consultation,Professional Services,60.87,60.87,0,0,0
26/03/2021,FACEBK FKMJS2TDQ2,Heritage Culture and Visitors,Advertising,50.03,50.03,0,0,0
16/02/2021,THE WORKPLACE DEPOT,Heritage Culture and Visitors,Other Equipment And Tools,589.77,707.72,117.95,0,20
16/03/2021,PAYPAL  EXPRESSED,DCMC Cultural Recovery Grant,Other Equipment And Tools,465.97,559.16,93.19,0,20
20/01/2021,DVLA VEHICLE TAX,Vehicle Pool Workshop,Licences & M.O.T.'S,267.5,267.5,0,0,0
19/03/2021,E P WEB SALES,Environmental Schemes,Promotion Of Events,307.15,307.15,0,0,0
20/01/2021,DVLA VEHICLE TAX,Vehicle Pool Workshop,Licences & M.O.T.'S,267.5,267.5,0,0,0
20/01/2021,DVLA VEHICLE TAX,Vehicle Pool Workshop,Licences & M.O.T.'S,267.5,267.5,0,0,0
20/01/2021,DVLA VEHICLE TAX,Vehicle Pool Workshop,Licences & M.O.T.'S,267.5,267.5,0,0,0
20/01/2021,DVLA VEHICLE TAX,Vehicle Pool Workshop,Licences & M.O.T.'S,302.5,302.5,0,0,0
20/01/2021,DVLA VEHICLE TAX,Vehicle Pool Workshop,Licences & M.O.T.'S,267.5,267.5,0,0,0
26/03/2021,GOOGLE  ADS1700883486,Arkwood Code,Professional Services,200,200,0,0,0
31/12/2020,Milk and More,HRA - Responsive Repairs,Office Equipment Purchase,24.75,24.75,0,0,0
05/01/2021,SCREWFIX DIRECT,HRA - Voids Maintenance,Clothing And Uniforms,34.99,34.99,0,0,0
06/01/2021,AMZNMktplace,HRA - Responsive Repairs,Clothing And Uniforms,29.95,29.95,0,0,0
07/01/2021,Milk and More,HRA - Responsive Repairs,Office Equipment Purchase,24.75,24.75,0,0,0
08/01/2021,SCREWFIX DIRECT,HRA - Responsive Repairs,Clothing And Uniforms,54.98,54.98,0,0,0
09/01/2021,AMZNMktplace,HRA -  Tenancy & Estates,Miscellaneous Expenses,37.99,37.99,0,20,0
13/01/2021,AMZNMKTPLACE AMAZON.CO,HRA - Responsive Repairs,Materials,46.95,46.95,0,20,0
14/01/2021,Milk and More,HRA - Responsive Repairs,Office Equipment Purchase,24.75,24.75,0,0,0
14/01/2021,AMZNMKTPLACE AMAZON.CO,HRA -  Tenancy & Estates,Miscellaneous Expenses,42.79,42.79,0,20,0
15/01/2021,SP   T CARDS DIRECT,HRA - Responsive Repairs,Office Equipment Purchase,33.36,33.36,0,0,0
19/01/2021,Amazon.co.uk MV8IJ4AC4,HRA - Responsive Repairs,Materials,195.82,195.82,0,20,0
21/01/2021,Milk and More,HRA - Responsive Repairs,Office Equipment Purchase,24.75,24.75,0,0,0
24/01/2021,AMZNMKTPLACE AMAZON.CO,HRA -  Tenancy & Estates,Miscellaneous Expenses,89.48,89.48,0,20,0
28/01/2021,Milk and More,HRA - Responsive Repairs,Office Equipment Purchase,13.5,13.5,0,0,0
01/02/2021,HTTPS://WWW.POLIMIL.CO,HRA - Street Wardens,Clothing And Uniforms,71.21,85.45,14.24,0,20
04/02/2021,Milk and More,HRA - Responsive Repairs,Office Equipment Purchase,13.5,13.5,0,0,0
05/02/2021,AMZNMktplace,HRA - Responsive Repairs,Materials,19.99,19.99,0,20,0
11/02/2021,Milk and More,HRA - Responsive Repairs,Office Equipment Purchase,13.5,13.5,0,0,0
16/02/2021,WWW.RMLABELS.COM,HRA - Voids Maintenance,Materials,65.45,65.45,0,0,0
18/02/2021,Amazon.co.uk MF18U4214,HRA - Responsive Repairs,Miscellaneous Expenses,54.52,54.52,0,0,0
18/02/2021,Amazon.co.uk MF78U9214,HRA -  Tenancy & Estates,Miscellaneous Expenses,109.04,109.04,0,0,0
18/02/2021,Milk and More,HRA - Responsive Repairs,Office Equipment Purchase,13.5,13.5,0,0,0
19/02/2021,SCREWFIX DIRECT,HRA - Responsive Repairs,Repairs And Maintenance,349.99,349.99,0,0,0
19/02/2021,PAYPAL  BOLUGACOM,HRA - Voids Maintenance,Materials,180,216,36,0,20
25/02/2021,Milk and More,HRA - Responsive Repairs,Office Equipment Purchase,13.5,13.5,0,0,0
02/03/2021,AMZNMktplace,HRA - Responsive Repairs,Materials,9.74,9.74,0,0,0
04/03/2021,Milk and More,HRA - Responsive Repairs,Office Equipment Purchase,13.5,13.5,0,0,0
05/03/2021,CNS POWER TOOLS LT,HRA - Voids Maintenance,Materials,25.16,30.19,5.03,0,20
05/03/2021,SCREWFIX DIRECT,HRA - Planned Maintenance,Clothing And Uniforms,79.98,79.98,0,0,0
11/03/2021,Milk and More,HRA - Responsive Repairs,Office Equipment Purchase,13.5,13.5,0,0,0
12/03/2021,SCREWFIX DIRECT,HRA - Responsive Repairs,Clothing And Uniforms,39.99,39.99,0,0,0
15/03/2021,AMZNMktplace,HRA - Responsive Repairs,Other Equipment And Tools,24.21,24.21,0,20,0
17/03/2021,SHOWERDOC,HRA - Responsive Repairs,Materials,55.91,67.09,11.18,0,20
18/03/2021,Milk and More,HRA - Responsive Repairs,Office Equipment Purchase,13.5,13.5,0,0,0
19/03/2021,SCREWFIX DIRECT,HRA - Planned Maintenance,Clothing And Uniforms,32.48,32.48,0,0,0
29/01/2021,DISCLOSURE & BARRING,Personnel Section,Disclosure & barring service,13,13,0,0,0
29/01/2021,DISCLOSURE & BARRING,Personnel Section,Disclosure & barring service,13,13,0,0,0
29/01/2021,DISCLOSURE & BARRING,Personnel Section,Disclosure & barring service,13,13,0,0,0
15/02/2021,DISCLOSURE & BARRING,Museums Management,Professional Services,13,13,0,0,0
16/02/2021,DISCLOSURE & BARRING,Museums Management,Professional Services,13,13,0,0,0
18/02/2021,DISCLOSURE & BARRING,Museums Management,Professional Services,13,13,0,0,0
15/03/2021,DISCLOSURE & BARRING,Personnel Section,Disclosure & barring service,13,13,0,0,0
18/03/2021,DISCLOSURE & BARRING,Personnel Section,Disclosure & barring service,13,13,0,0,0
21/01/2021,WESTMINSTER INSIGHT,Customer Services,Contractual Services,225,270,45,0,20
06/02/2021,Amazon.co.uk MF0XY2N44,Customer Services,Office Equipment Purchase,15.27,18.33,3.06,0,20
28/01/2021,EB  CHIEF OFFICERS CON,Corporate Management Team,Course Fees,199,238.8,39.8,0,20
15/02/2021,GOVERNMENT EVENTS,Corporate Management Team,Course Fees,346.8,346.8,0,0,0
04/02/2021,WWW.MONEYCLAIM.GOV,HRA - Central Charges incl SLA's,Micellaneous Income,105,105,0,0,0
04/02/2021,WWW.MONEYCLAIM.GOV,HRA - Central Charges incl SLA's,Micellaneous Income,105,105,0,0,0
04/02/2021,WWW.MONEYCLAIM.GOV,HRA - Central Charges incl SLA's,Micellaneous Income,60,60,0,0,0
04/02/2021,WWW.MONEYCLAIM.GOV,HRA - Central Charges incl SLA's,Micellaneous Income,70,70,0,0,0
04/02/2021,WWW.MONEYCLAIM.GOV,HRA - Central Charges incl SLA's,Micellaneous Income,25,25,0,0,0
04/02/2021,WWW.MONEYCLAIM.GOV,HRA - Central Charges incl SLA's,Micellaneous Income,70,70,0,0,0
04/02/2021,WWW.MONEYCLAIM.GOV,HRA - Central Charges incl SLA's,Micellaneous Income,25,25,0,0,0
04/02/2021,WWW.MONEYCLAIM.GOV,HRA - Central Charges incl SLA's,Micellaneous Income,60,60,0,0,0
16/02/2021,WWW.MONEYCLAIM.GOV,HRA - Central Charges incl SLA's,Micellaneous Income,25,25,0,0,0
01/02/2021,DNH GODADDY.COM EUROPE,Newark Castle/Castle Grounds,Is Internet Charges,32.28,38.74,6.46,0,0
29/01/2021,TIMPSON LTD,Heritage Culture and Visitors,Repairs And Maintenance,11.67,14,2.33,0,20
03/02/2021,PAYPAL  HOUSELORDSP,Heritage Culture and Visitors,Other Equipment And Tools,50,50,0,0,0
22/02/2021,eBay O 07-06622-14483,DCMC Cultural Recovery Grant,Other Equipment And Tools,120.23,144.28,24.05,0,20
10/02/2021,B&M 359 - NEWARK,Housing Options,Miscellaneous Expenses,334.35,334.35,0,0,0
11/02/2021,B&M 359 - NEWARK,Housing Options,Miscellaneous Expenses,92.44,92.44,0,0,0
13/02/2021,POUNDSTRETCHER 569,Housing Options,Miscellaneous Expenses,11.94,11.94,0,0,0
13/02/2021,HOME BARGAINS NEWARK,Housing Options,Miscellaneous Expenses,15.48,15.48,0,0,0
12/03/2021,YTC (NEWARK),Housing Options,Miscellaneous Expenses,9.95,11.94,1.99,0,20
19/03/2021,ARGOS LTD,Housing Options,Miscellaneous Expenses,63.89,63.89,0,0,0
22/03/2021,CURRYS ONLINE,Housing Options,Miscellaneous Expenses,216.65,259.98,43.33,0,20
06/01/2021,ROYAL MAIL CHARGES,Central Postages,Postages,2,2,0,0,0
06/01/2021,ROYAL MAIL CHARGES,Central Postages,Postages,1.5,1.5,0,0,0
06/01/2021,ROYAL MAIL CHARGES,Central Postages,Postages,1.5,1.5,0,0,0
06/01/2021,ROYAL MAIL CHARGES,Central Postages,Postages,1.5,1.5,0,0,0
08/01/2021,Amazon.co.uk MJ63Y8KW4,Env Health Proactive,Office Equipment Purchase,66.23,79.48,13.25,0,20
11/01/2021,E.ON ENERGY SOLUTIONS,Housing Options,Hostel Management,28.53,28.53,0,0,0
11/01/2021,E.ON ENERGY SOLUTIONS,Housing Options,Hostel Management,7.97,7.97,0,0,0
20/01/2021,ROYAL MAIL CHARGES,Central Postages,Postages,1.5,1.5,0,0,0
20/01/2021,ROYAL MAIL CHARGES,Central Postages,Postages,1.5,1.5,0,0,0
28/01/2021,NOTTS COUNTY COUNCIL,National Assistance Act Burial,General Grants,11,11,0,0,0
28/01/2021,NOTTS COUNTY COUNCIL,National Assistance Act Burial,General Grants,22,22,0,0,0
28/01/2021,NOTTS COUNTY COUNCIL,National Assistance Act Burial,General Grants,-11,-11,0,0,0
30/01/2021,EASILY LTD,Promotion Of Tourism,Professional Services,151,151,0,0,0
02/02/2021,P NWK&SHWD DC,Safer Streets,Contractual Services,60,60,0,0,0
08/02/2021,E.ON ENERGY SOLUTIONS,Housing Options,Hostel Management,12.27,12.27,0,0,0
10/02/2021,ROYAL MAIL CHARGES,Central Postages,Postages,1.5,1.5,0,0,0
15/02/2021,WWW.PROFESSIONALBOOKS.,HRA - Programmed Works,Miscellaneous Expenses,324.9,324.9,0,0,0
17/02/2021,AMZNMKTPLACE AMAZON.CO,Licensing Admin,Hackney Licence Costs,24.82,29.78,4.96,0,20
23/02/2021,AMZNMktplace,Env Health Proactive,Office Equipment Purchase,9.89,11.87,1.98,0,20
03/03/2021,R H ENVIRONMENTAL LTD,Env Health Proactive,Professional Services,25,30,5,0,20
02/03/2021,DNH GO DADDY EUROPE GB,Arkwood Code,Web Registration/Telephone,28.8,28.8,0,0,0
03/03/2021,ROYAL MAIL CHARGES,Central Postages,Postages,2,2,0,0,0
04/03/2021,NOTTS COUNTY COUNCIL,Central Personnel Expenses,Internal Training,5,5,0,0,0
09/03/2021,WWW.ARCO.CO.UK,Env Health Proactive,Professional Services,145.86,175.03,29.17,0.2,0
10/03/2021,WWW.ARCO.CO.UK,Car Parks & Markets Admin,Clothing And Uniforms,50.88,61.06,10.18,0.2,0
16/03/2021,WWW.HERTSMERE.GOV.UK,Central Personnel Expenses,Internal Training,180,180,0,0,0
17/03/2021,NITON EQUIPMENT LTD,Env Health Proactive,Clothing And Uniforms,194.07,232.88,38.81,0,20
17/03/2021,WWW.GALATENT.CO.UK,HRA -  Tenancy & Estates,Tenant Involvement Activites,500,500,0,0,0
18/03/2021,E.ON ENERGY SOLUTIONS,Housing Options,Hostel Management,15.36,15.36,0,0,0
18/03/2021,WWW.ARCO.CO.UK,Car Parks & Markets Admin,Clothing And Uniforms,41.67,50,8.33,0.2,0
11/01/2021,NEWARK & SHERWOOD LOCK,Vicar Water Park,Other Equipment And Tools,50,60,10,0,20
14/01/2021,SCREWFIX NEWARK,Vicar Water Park,Other Equipment And Tools,33.32,39.98,6.66,0,20
25/01/2021,HOMEBASE LTD,Vicar Water Park,Other Equipment And Tools,5.95,5.95,0,0,0
29/01/2021,NEWARK & SHERWOOD LOCK,Vicar Water Park,Other Equipment And Tools,26.25,31.5,5.25,0,20
15/02/2021,HOMEBASE LTD,Street Sweeping,Materials,65.45,65.45,0,0,0
19/02/2021,NEWARK & SHERWOOD LOCK,Street Sweeping,Materials,25,30,5,0,20
08/03/2021,SCREWFIX DIR LTD,Street Sweeping,Materials,12.58,15.1,2.52,0,20
10/03/2021,TRAVIS PERKINS,Street Sweeping,Materials,35.4,42.48,7.08,0,0
10/03/2021,HOMEBASE LTD,Street Sweeping,Materials,119,119,0,0,0
04/01/2021,AMZNMktplace,HRA - Responsive Repairs,Materials,6.63,7.95,1.32,0,20
05/01/2021,Amazon.co.uk MJ7EG68F4,HRA - Responsive Repairs,Materials,15.17,18.21,3.04,0,20
07/01/2021,AMZNMktplace,HRA - Responsive Repairs,Materials,9.01,10.81,1.8,0,20
07/01/2021,LOCKSANDHARDWARE,HRA - Responsive Repairs,Materials,22.94,27.53,4.59,0,20
08/01/2021,AMZNMktplace,HRA - Responsive Repairs,Materials,11.29,13.55,2.26,0,20
10/01/2021,AMZNMktplace,HRA - Responsive Repairs,Materials,13.73,16.48,2.75,0,20
15/01/2021,AMZNMktplace,HRA - Responsive Repairs,Materials,5.75,6.9,1.15,0,20
18/01/2021,AMZNMKTPLACE AMAZON.CO,HRA - Responsive Repairs,Materials,32.87,39.44,6.57,0,20
19/01/2021,Amazon.co.uk MV4VW6AH4,HRA - Responsive Repairs,Materials,95.41,114.49,19.08,0,20
21/01/2021,AMZNMktplace,HRA - Planned Maintenance,Materials,95.74,114.89,19.15,0,20
22/01/2021,AMZNMktplace,HRA - Responsive Repairs,Materials,29.12,34.95,5.83,0,20
25/01/2021,Amazon.co.uk MV4EJ15J4,HRA - Responsive Repairs,Materials,83.33,99.99,16.66,0,20
26/01/2021,SCREWFIX DIRECT,HRA - Responsive Repairs,Materials,23.01,27.61,4.6,0,20
02/02/2021,AMZNMktplace,HRA - Planned Maintenance,Materials,17.63,21.16,3.53,0,20
07/02/2021,Amazon.co.uk MF1EY2JW4,HRA - Voids Maintenance,Materials,22.65,27.18,4.53,0,20
05/02/2021,AMZNMktplace,HRA - Responsive Repairs,Materials,10.07,12.09,2.02,0,20
11/02/2021,AMZNMktplace,HRA - Responsive Repairs,Materials,59.45,71.34,11.89,0,20
11/02/2021,PLUMBNATION LTD,HRA - Responsive Repairs,Materials,37.48,44.98,7.5,0,20
16/02/2021,AMZNMktplace,HRA - Responsive Repairs,Materials,10.07,12.09,2.02,0,20
17/02/2021,Amazon.co.uk MF0PX4S14,HRA - Responsive Repairs,Materials,95.83,114.99,19.16,0,20
24/02/2021,AMZNMktplace,HRA - Responsive Repairs,Materials,10.74,10.74,0,0,0
25/02/2021,AMZNMKTPLACE AMAZON.CO,HRA - Responsive Repairs,Materials,23.32,27.99,4.67,0,20
28/02/2021,Amazon.co.uk MM49F1A74,HRA - Responsive Repairs,Materials,23.7,28.44,4.74,0,20
08/03/2021,Amazon.co.uk MM1CC1DW4,HRA - Responsive Repairs,Materials,91.51,109.81,18.3,0,20
23/03/2021,CAPITA GAS,HRA - Compliance Services,Appliance Servicing,257.93,257.93,0,0,0
23/03/2021,SCREWFIX DIRECT,HRA - Responsive Repairs,Materials,18.99,22.79,3.8,0,20
13/01/2021,CO OP GROUP FOOD,Newark Business Innovation Cen,Catering,2.95,2.95,0,0,0
13/01/2021,THE RANGE-NEWARK,Newark Business Innovation Cen,Repairs And Maintenance,3.32,3.99,0.67,0,20
13/01/2021,NEWARK & SHERWOOD LOCK,Newark Business Innovation Cen,Premises Security,4.58,5.5,0.92,0,20
02/02/2021,NEWARK & SHERWOOD LOCK,Newark Business Innovation Cen,Premises Security,9.17,11,1.83,0,20
03/02/2021,NEWARK & SHERWOOD LOCK,Newark Business Innovation Cen,Premises Security,4.17,5,0.83,0,20
08/02/2021,CO OP GROUP FOOD,Newark Business Innovation Cen,Catering,1.45,1.45,0,0,0
11/02/2021,Amazon.co.uk MF7M46XB4,Newark Business Innovation Cen,Office Equipment Purchase,20.79,24.95,4.16,20,20
18/02/2021,CO OP GROUP FOOD,Newark Business Innovation Cen,Catering,2.5,2.5,0,0,0
21/02/2021,WILKO RETAIL LIMITED,Newark Business Innovation Cen,Office Equipment Purchase,2.08,2.5,0.42,0,20
23/02/2021,CO OP GROUP FOOD,Newark Business Innovation Cen,Catering,1.5,1.5,0,0,0
02/03/2021,CO OP GROUP FOOD,Newark Business Innovation Cen,Catering,1.5,1.5,0,0,0
09/03/2021,IKEA LTD SHOP ONLINE,Newark Business Innovation Cen,Office Equipment Purchase,25.21,30.25,5.04,0,20
11/03/2021,EMPIRESUPPL,Newark Business Innovation Cen,Office Equipment Purchase,466.8,466.8,0,0,0
12/03/2021,DAVISON S BAKERY,Newark Business Innovation Cen,Catering,38.33,46,7.67,0,20
12/03/2021,WM MORRISONS STORE,Newark Business Innovation Cen,Catering,6,6,0,0,0
17/03/2021,CO OP GROUP FOOD,Newark Business Innovation Cen,Catering,1.5,1.5,0,0,0
04/01/2021,WWW.FTA.CO.UK,Vehicle Pool Workshop,Licences & M.O.T.'S,35.75,42.9,7.15,0,20
12/01/2021,GRANTLEY SAW MILLS LTD,Vehicle Pool Workshop,Clothing And Uniforms,100,100,0,0,0
13/01/2021,DVSA,Vehicle Pool Workshop,Materials,410,410,0,0,0
22/01/2021,TYRETRACKS MARCHINGTON,Refuse Collection,Materials,258,309.6,51.6,0,20
22/01/2021,TIGER HIRE,Flooding - January 2020,Emergency Provisions,540,648,108,0,20
26/01/2021,DRIVER HIRE GROUP SERV,Central Personnel Expenses,Internal Training,412.5,495,82.5,0,20
27/01/2021,DRIVER HIRE GROUP SERV,Central Personnel Expenses,Internal Training,187.5,225,37.5,0,20
02/02/2021,DRIVER HIRE GROUP SERV,Central Personnel Expenses,Internal Training,862.5,1035,172.5,0,20
02/02/2021,DRIVER HIRE GROUP SERV,Central Personnel Expenses,Internal Training,187.5,225,37.5,0,20
03/02/2021,DRIVER HIRE GROUP SERV,Central Personnel Expenses,Internal Training,375,450,75,0,20
04/02/2021,DRIVER HIRE GROUP SERV,Central Personnel Expenses,Internal Training,375,450,75,0,20
05/02/2021,DVLA VEHICLE TAX,Vehicle Pool Workshop,Licences & M.O.T.'S,267.5,267.5,0,0,0
05/02/2021,DVLA VEHICLE TAX,Vehicle Pool Workshop,Licences & M.O.T.'S,167.5,167.5,0,0,0
05/02/2021,DVLA VEHICLE TAX,Vehicle Pool Workshop,Licences & M.O.T.'S,267.5,267.5,0,0,0
05/02/2021,DVLA VEHICLE TAX,Vehicle Pool Workshop,Licences & M.O.T.'S,267.5,267.5,0,0,0
05/02/2021,DVLA VEHICLE TAX,Vehicle Pool Workshop,Licences & M.O.T.'S,267.5,267.5,0,0,0
05/02/2021,DVLA VEHICLE TAX,Vehicle Pool Workshop,Licences & M.O.T.'S,267.5,267.5,0,0,0
05/02/2021,DVLA VEHICLE TAX,Vehicle Pool Workshop,Licences & M.O.T.'S,267.5,267.5,0,0,0
09/02/2021,DRIVER HIRE GROUP SERV,Central Personnel Expenses,Internal Training,112.5,135,22.5,0,20
09/02/2021,TRUCK LOADERS LTD,Vehicle Pool Workshop,Materials,148.48,178.18,29.7,0,20
13/02/2021,THE RANGE-NEWARK,Vehicle Pool Workshop,Clothing And Uniforms,23.3,27.96,4.66,0,20
17/02/2021,DRIVER HIRE GROUP SERV,Central Personnel Expenses,Internal Training,75,90,15,0,20
18/02/2021,DRIVER HIRE GROUP SERV,Central Personnel Expenses,Internal Training,112.5,135,22.5,0,20
04/03/2021,SCREWFIX DIR LTD,Brunel Drive Depot,Materials,14.31,17.17,2.86,0,20
05/03/2021,DVLA VEHICLE TAX,Vehicle Pool Workshop,Licences & M.O.T.'S,267.5,267.5,0,0,0
05/03/2021,DVLA VEHICLE TAX,Vehicle Pool Workshop,Licences & M.O.T.'S,267.5,267.5,0,0,0
05/03/2021,DVLA VEHICLE TAX,Vehicle Pool Workshop,Licences & M.O.T.'S,267.5,267.5,0,0,0
05/03/2021,DVLA VEHICLE TAX,Vehicle Pool Workshop,Licences & M.O.T.'S,267.5,267.5,0,0,0
05/03/2021,DVLA VEHICLE TAX,Vehicle Pool Workshop,Licences & M.O.T.'S,267.5,267.5,0,0,0
05/03/2021,DVLA VEHICLE TAX,Vehicle Pool Workshop,Licences & M.O.T.'S,267.5,267.5,0,0,0
05/03/2021,DVLA VEHICLE TAX,Vehicle Pool Workshop,Licences & M.O.T.'S,267.5,267.5,0,0,0
05/03/2021,DVLA VEHICLE TAX,Vehicle Pool Workshop,Licences & M.O.T.'S,267.5,267.5,0,0,0
05/03/2021,DVLA VEHICLE TAX,Vehicle Pool Workshop,Licences & M.O.T.'S,267.5,267.5,0,0,0
08/03/2021,DVSA,Vehicle Pool Workshop,Materials,410,410,0,0,0
12/03/2021,DRIVER HIRE GROUP SERV,Central Personnel Expenses,Internal Training,81.25,81.25,0,0,0
17/03/2021,DVLA DIGITAL TACHO,Vehicle Pool Workshop,Licences & M.O.T.'S,19,19,0,0,0
19/03/2021,WARREN MACH TOOLS,Street Sweeping,Other Equipment And Tools,344.64,413.57,68.93,0,20
23/03/2021,DRIVER HIRE GROUP SERV,Central Personnel Expenses,Internal Training,-81.25,-81.25,0,0,0
18/01/2021,WWW.PUBLICPOLICYEXCHAN,Sherwood Youth Hostel,Professional Services,118.8,118.8,0,0,0
08/02/2021,CIM,Central Personnel Expenses,Internal Training,150,150,0,0,0
28/12/2020,Amazon Prime MJ4M37JX4,Env Health Proactive,Inspections,7.99,7.99,0,0,0
04/01/2021,SQ  DANTECH,Ict,Materials,712.5,855,142.5,0,20
08/01/2021,1STLOCATE T/A LCS,Housing Options,Hostel Management,41.41,41.41,0,0,0
08/01/2021,ACT HEALTH AND SAFETY,Central Personnel Expenses,Internal Training,195,195,0,0,0
12/01/2021,NHBC,Env Health Proactive,Training Expenses,20,24,4,0,20
18/01/2021,SEVERN TRENT WATER,Housing Options,Hostel Management,555.68,555.68,0,0,0
21/01/2021,SP   ALDI GROCERY VOUC,Covid-19 Expenditure only,Emergency Provisions,600,600,0,0,0
25/01/2021,Amazon Prime,Env Health Proactive,Licences,-7.99,-7.99,0,0,0
27/01/2021,CS  TESCO STORES GC,Covid-19 Expenditure only,Ex Gratia Payments,1020,1020,0,0,0
03/02/2021,PATROLSTORE,Env Health Proactive,Clothing And Uniforms,69.15,82.98,13.83,0,20
05/02/2021,HERTSMERE BOROUGH,Env Health Proactive,Training Expenses,50,50,0,0,0
05/02/2021,WWW.CIPFA.ORG.UK,Financial Services,Subscriptions,332,332,0,0,0
10/02/2021,HIGHSTREETVOUCHERS,Covid-19 Expenditure only,Ex Gratia Payments,1000,1000,0,0,0
15/02/2021,CURRYS ONLINE,Heritage Culture and Visitors,Other Equipment And Tools,533.32,639.99,106.67,0,20
16/02/2021,WWW.MONEYCLAIM.GOV,Financial Services,Professional Services,410,410,0,0,0
18/02/2021,SP   ALDI GROCERY VOUC,Covid-19 Expenditure only,Emergency Provisions,500,500,0,0,0
19/02/2021,AMZNMKTPLACE AMAZON.CO,HRA - Programmed Works,Miscellaneous Expenses,26.66,31.99,5.33,0,20
22/02/2021,RICS SUBS UK CYBS,Corporate Property,Subscriptions,539,539,0,0,0
26/02/2021,BEVYPAY,Ict,Hardware Maintenance,295,354,59,0,20
02/03/2021,HIGHSTREETVOUCHERS,Covid Winter Grants Scheme,Gov Grant Expenditure,1000,1000,0,0,0
06/03/2021,CS  TESCO STORES GC,Covid Winter Grants Scheme,Gov Grant Expenditure,1020,1020,0,0,0
10/03/2021,CS  TESCO STORES GC,Covid Winter Grants Scheme,Gov Grant Expenditure,3000,3000,0,0,0
15/03/2021,WWW ESPARES CO UK,Lorry Park,Equipment Repairs & Renewals,35.77,42.93,7.16,0,20
17/03/2021,AMZNMktplace,HRA -  Tenancy & Estates,Tenant Involvement Activites,360.59,360.59,0,0,0
17/03/2021,METROPLAN LTD,Safer Streets,Contractual Services,501.05,601.26,100.21,0,20
18/03/2021,CS  TESCO STORES GC,Covid Winter Grants Scheme,Gov Grant Expenditure,3000,3000,0,0,0
19/03/2021,CURRYS ONLINE,Housing Options,Miscellaneous Expenses,519.96,519.96,0,0,0
11/01/2021,HUE,Heritage Culture and Visitors,Other Equipment And Tools,124.68,124.68,0,0,0
16/01/2021,POST OFFICE COUNTER,Heritage Culture and Visitors,Other Equipment And Tools,8.95,8.95,0,0,0
20/01/2021,ARGOS LTD,Heritage Culture and Visitors,Other Equipment And Tools,389.97,389.97,0,0,0
05/02/2021,,Heritage Culture and Visitors,Other Equipment And Tools,-389.97,-389.97,0,0,0
05/02/2021,,Heritage Culture and Visitors,Other Equipment And Tools,389.97,389.97,0,0,0
15/02/2021,MATTERPORT,Heritage Culture and Visitors,Other Equipment And Tools,4,4.8,0.8,0,20
16/02/2021,WWW.CABOODLE.CO.UK,Heritage Culture and Visitors,Other Equipment And Tools,13.63,13.63,0,0,0
16/02/2021,PAYPAL  DSLDAILYSUP EB,Heritage Culture and Visitors,Other Equipment And Tools,9.99,9.99,0,0,0
16/02/2021,PAYPAL  FUHAIXINXIJ EB,Heritage Culture and Visitors,Other Equipment And Tools,46,46,0,0,0
16/02/2021,eBay O 16-06589-03881,Heritage Culture and Visitors,Other Equipment And Tools,3.29,3.29,0,0,0
16/02/2021,eBay O 06-06590-30516,Heritage Culture and Visitors,Other Equipment And Tools,5.96,5.96,0,0,0
17/02/2021,W BOYES & CO LTD NEWAR,Heritage Culture and Visitors,Other Equipment And Tools,21.56,25.87,4.31,0,20
17/02/2021,YTC (NEWARK),Heritage Culture and Visitors,Other Equipment And Tools,3.67,4.4,0.73,0,20
20/02/2021,W BOYES & CO LTD NEWAR,Heritage Culture and Visitors,Other Equipment And Tools,2.42,2.9,0.48,0,20
23/02/2021,CULTURE LEARNING,Heritage Culture and Visitors,Other Equipment And Tools,50,50,0,0,0
24/02/2021,POST OFFICE COUNTER,Heritage Culture and Visitors,Other Equipment And Tools,28.3,28.3,0,0,0
25/02/2021,WWW.THEWORKS.CO.UK,Heritage Culture and Visitors,Education & Outreach,500,500,0,0,0
26/02/2021,TICKETSOURCE,Heritage Culture and Visitors,Education & Outreach,95,95,0,0,0
26/02/2021,TICKETSOURCE,Central Personnel Expenses,Internal Training,95,95,0,0,0
01/03/2021,SP   COKEREXPO,Heritage Culture and Visitors,Other Equipment And Tools,58,69.6,11.6,0,20
02/03/2021,MATTERPORT,Heritage Culture and Visitors,Other Equipment And Tools,7.99,9.59,1.6,0,20
03/03/2021,POUNDSTRETCHER 569,Heritage Culture and Visitors,Other Equipment And Tools,20.42,24.5,4.08,0,20
04/03/2021,WWW.UKPOSTALPACKAGING.,Heritage Culture and Visitors,Education & Outreach,25.72,30.86,5.14,0,20
04/03/2021,EB  DELIVERING CREATIV,Heritage Culture and Visitors,Other Equipment And Tools,25,25,0,0,0
04/03/2021,W BOYES & CO LTD NEWAR,Heritage Culture and Visitors,Promotion Of Events,54.17,65,10.83,0,20
04/03/2021,WWW.APLPACKAGING.CO.UK,Heritage Culture and Visitors,Promotion Of Events,13.44,16.13,2.69,0,20
29/12/2020,capitalhairandbeauty.c,HRA - Gladstone House,Photographic Work,226.34,226.34,0,0,0
05/01/2021,WWW.NISBETS.COM,HRA - Vale View,Catering,289.37,347.24,57.87,0,20
05/01/2021,DF Sales Ltd,HRA - Vale View,Cleaning Materials,39.95,39.95,0,0,0
05/01/2021,JANITORIALW,HRA - Gladstone House,Cleaning Materials,69.3,69.3,0,0,0
21/01/2021,A S CATERING SUPPLIES,HRA - Vale View,Catering,96.17,96.17,0,0,0
01/02/2021,SP   GENERATIONZERO.UK,HRA - Vale View,Cleaning Materials,12.4,12.4,0,0,0
01/02/2021,SP   GENERATIONZERO.UK,HRA - Gladstone House,Cleaning Materials,12.39,12.39,0,0,0
08/02/2021,ARGOS LTD,HRA - Vale View,Miscellaneous Expenses,9.97,9.97,0,0,0
08/02/2021,ARGOS LTD,HRA - Gladstone House,Miscellaneous Expenses,9.96,9.96,0,0,0
17/02/2021,WWW.NISBETS.COM,HRA - Gladstone House,Catering Equipment,37.98,45.58,7.6,0,20
17/02/2021,PROCOOK,HRA - Vale View,Catering Equipment,14.98,17.98,3,0,0
17/02/2021,PROCOOK,HRA - Gladstone House,Catering Equipment,14.98,17.97,2.99,0,0
17/02/2021,eBay O 02-06596-95375,HRA - Gladstone House,Catering Equipment,69.95,69.95,0,0,0
17/02/2021,WWW.GREATSUPPLIES.CO.U,HRA - Gladstone House,Cleaning Materials,53.73,53.73,0,0,0
26/02/2021,TVLICENSING.CO.UK,HRA - Gladstone House,Licences,157.5,157.5,0,0,0
08/03/2021,WWW.DENTONSCATERING.CO,HRA - Gladstone House,Furniture And Fittings,45.2,54.24,9.04,0,20
08/03/2021,WWW.NISBETS.COM,HRA - Gladstone House,Cleaning Materials,41.98,50.38,8.4,0,20
08/03/2021,WWW.PARTYDELIGHTS.CO.U,HRA - Gladstone House,Catering,14.95,17.94,2.99,0,20
08/03/2021,LOVE TIKI BARWARE PROD,HRA - Gladstone House,Catering,109.2,109.2,0,0,0
09/03/2021,WWW.GREATSUPPLIES.CO.U,HRA - Gladstone House,Cleaning Materials,-4.08,-4.9,-0.82,0,20
21/01/2021,WM MORRISONS STORE,Covid-19 Expenditure only,Emergency Provisions,480,480,0,0,0
21/01/2021,WM MORRISONS STORE,Covid-19 Expenditure only,Emergency Provisions,480,480,0,0,0
19/02/2021,ALDI,Food Environment Grant,Contractual Services,46.25,46.25,0,0,0
19/02/2021,ALDI,Food Environment Grant,Contractual Services,482.71,482.71,0,0,0
13/03/2021,ARGOS LTD,Community Sports & Arts Dev,Office Equipment Purchase,199.99,199.99,0,0,0
08/01/2021,WWW.MONEYCLAIM.GOV,HRA - Central Charges incl SLA's,Micellaneous Income,25,25,0,0,0
08/01/2021,WWW.MONEYCLAIM.GOV,HRA - Central Charges incl SLA's,Micellaneous Income,35,35,0,0,0
08/01/2021,WWW.MONEYCLAIM.GOV,HRA - Central Charges incl SLA's,Micellaneous Income,25,25,0,0,0
08/01/2021,WWW.MONEYCLAIM.GOV,HRA - Central Charges incl SLA's,Micellaneous Income,25,25,0,0,0
08/01/2021,WWW.MONEYCLAIM.GOV,HRA - Central Charges incl SLA's,Micellaneous Income,35,35,0,0,0
08/01/2021,WWW.MONEYCLAIM.GOV,HRA - Central Charges incl SLA's,Micellaneous Income,35,35,0,0,0
08/01/2021,WWW.MONEYCLAIM.GOV,HRA - Central Charges incl SLA's,Micellaneous Income,25,25,0,0,0
08/01/2021,WWW.MONEYCLAIM.GOV,HRA - Central Charges incl SLA's,Micellaneous Income,105,105,0,0,0
08/01/2021,WWW.MONEYCLAIM.GOV,HRA - Central Charges incl SLA's,Micellaneous Income,105,105,0,0,0
13/01/2021,WWW.MONEYCLAIM.GOV,HRA - Central Charges incl SLA's,Micellaneous Income,25,25,0,0,0
14/01/2021,POSSESSIONCLAIM.GO,HRA - Central Charges incl SLA's,Micellaneous Income,325,325,0,0,0
22/01/2021,WWW.MONEYCLAIM.GOV,HRA - Central Charges incl SLA's,Micellaneous Income,25,25,0,0,0
26/02/2021,WWW.MONEYCLAIM.GOV,HRA - Central Charges incl SLA's,Miscellaneous Items,35,35,0,0,0
12/03/2021,POSSESSIONCLAIM.GO,HRA - Income Management,Legal Fees Courts,325,325,0,0,0
29/12/2020,ASDA GROCERIES ONLINE,Castle House,Catering,46.74,46.74,0,0,0
29/12/2020,AMZ Scanner Express,Administration Services,Equipment Repairs & Renewals,-199.65,-239.58,-39.93,0,20
31/12/2020,DNH GODADDY.COM EUROPE,Other Financial Transactions,Miscellaneous Items,15.55,18.66,3.11,0,20
31/12/2020,AMZNMKTPLACE AMAZON.CO,Housing Benefit Admin,Equipment Repairs & Renewals,24.97,24.97,0,0,0
31/12/2020,AMZNMKTPLACE AMAZON.CO,Committee Section,Equipment Repairs & Renewals,24.96,24.96,0,0,0
04/01/2021,ASDA GROCERIES ONLINE,Castle House,Catering,46.3,46.3,0,0,0
11/01/2021,ASDA GROCERIES ONLINE,Castle House,Catering,37.33,37.33,0,0,0
18/01/2021,ASDA GROCERIES ONLINE,Castle House,Catering,41.01,41.01,0,0,0
21/01/2021,Amazon.co.uk MV0DL8P14,Customer Services,Office Equipment Purchase,22.47,26.96,4.49,0,20
25/01/2021,ASDA GROCERIES ONLINE,Castle House,Catering,-0.25,-0.25,0,0,0
25/01/2021,ASDA GROCERIES ONLINE,Castle House,Catering,28.64,28.64,0,0,0
05/02/2021,ASDA GROCERIES ONLINE,Castle House,Catering,47.78,47.78,0,0,0
15/02/2021,ASDA GROCERIES ONLINE,Castle House,Catering,28.47,28.47,0,0,0
22/02/2021,ASDA GROCERIES ONLINE,Castle House,Catering,37.97,37.97,0,0,0
26/02/2021,BEVYPAY,Ict,Hardware Maintenance,295,354,59,0,20
26/02/2021,CURRYS ONLINE,Safer Streets,Contractual Services,309.14,370.97,61.83,0,20
26/02/2021,ARGOS LTD,Safer Streets,Contractual Services,169.17,203,33.83,0,20
26/02/2021,ARGOS LTD,Safer Streets,Contractual Services,169.17,203,33.83,0,20
26/02/2021,ARGOS LTD,Safer Streets,Contractual Services,-169.17,-203,-33.83,0,20
01/03/2021,AMZNMktplace,Safer Streets,Contractual Services,84.59,101.51,16.92,0,20
02/03/2021,ASDA GROCERIES ONLINE,Castle House,Catering,33.52,33.52,0,0,0
05/03/2021,NCC CPU RESIDENTS,Safer Streets,Contractual Services,140,140,0,0,0
08/03/2021,Primeprint Newark Ltd,Safer Streets,Contractual Services,16.67,20,3.33,0,20
09/03/2021,ASDA GROCERIES ONLINE,Castle House,Catering,49.66,49.66,0,0,0
10/03/2021,ARGOS LTD,Safer Streets,Contractual Services,-14.17,-17,-2.83,0,20
16/03/2021,ASDA GROCERIES ONLINE,Castle House,Catering,33.7,33.7,0,0,0
23/03/2021,ASDA GROCERIES ONLINE,Castle House,Catering,47.66,47.66,0,0,0
07/01/2021,SP   SAM TURNER & SONS,Castle House,Premises Repairs & Renewals,812.5,975,162.5,0,20
14/01/2021,eBay O 13-06406-63873,Castle House,Repairs And Maintenance,97.98,97.98,0,0,0
15/01/2021,WWW.ARCO.CO.UK,Covid-19 Expenditure only,Office Equipment Purchase,229.71,275.65,45.94,0.2,0
19/01/2021,SCREWFIX DIRECT,Castle House,Repairs And Maintenance,56.97,68.36,11.39,0,20
03/03/2021,AMZNMktplace,Castle House,Repairs And Maintenance,37.29,44.75,7.46,0,20
10/03/2021,SCREWFIX DIRECT,Corporate Property,Other Equipment And Tools,33.32,39.99,6.67,0,20
31/12/2020,WWW.XLNTELECOM.CO.UK,Southwell Tr admin & ops,Telephones,68.94,82.73,13.79,0,20
11/01/2021,AMZNMktplace,Southwell Tr admin & ops,Office Equipment Purchase,63.72,76.46,12.74,0,20
17/01/2021,ASDA  STORES 4201,Southwell Tr admin & ops,Meals,21.15,21.15,0,0,0
23/01/2021,AMZNMKTPLACE AMAZON.CO,Southwell Tr admin & ops,Office Equipment Purchase,101.94,101.94,0,0,0
22/01/2021,FCS WEBSIT  FCS WEBSIT,Southwell Tr admin & ops,Professional Services,60,72,12,0,20
01/02/2021,XLN TELECOM LTD,Southwell Tr admin & ops,Telephones,68.94,82.73,13.79,0,20
27/02/2021,CITY ELECTRICAL FA,Southwell Tr admin & ops,Other Equipment Maintenance,28.1,33.72,5.62,0,0
28/02/2021,ASDA  STORES 4201,Southwell Tr admin & ops,Meals,34.07,34.07,0,0,0
02/03/2021,"SP   H20 SWIM, SURF AN",Southwell Tr admin & ops,Training Expenses,329.17,395,65.83,0,20
02/03/2021,XLN TELECOM LTD,Southwell Tr admin & ops,Telephones,68.94,82.73,13.79,0,20
19/03/2021,HOMEBASE LTD,Southwell Tr admin & ops,Other Equipment And Tools,136.92,164.3,27.38,0,20
